[Event "2026 Biel Blitz Open"]
[Site "Biel, CH"]
[Date "2026.07.19"]
[Round "8"]
[White "Waelti, Thomas"]
[Black "Mousseau, Leo"]
[Result "0-1"]
[Board "50"]
[TimeControl "180+2"]
[WhiteFideId "1303996"]
[BlackFideId "34666931"]
[WhiteElo "1940"]
[BlackElo "1714"]
[WhiteClock "0:00:08"]
[BlackClock "0:00:45"]
[Variant "Standard"]
[EndDate "2026.07.19"]
[EndTime "14:23:18"]

1. e4 {[%clk 0:03:04]}  c6 {[%clk 0:03:03]} 2. d4 {[%clk 0:03:04]}  d5 {[%clk 0:03:04]} 3. Nc3 {[%clk 0:03:04]}  dxe4 {[%clk 0:03:05]}
4. Nxe4 {[%clk 0:03:04]}  Nf6 {[%clk 0:03:06]} 5. Ng3 {[%clk 0:02:56]}  Bg4 {[%clk 0:02:55]} 6. Be2 {[%clk 0:02:45]}  Bxe2 {[%clk 0:02:55]}
7. N1xe2 {[%clk 0:02:44]}  Nbd7 {[%clk 0:02:55]} 8. O-O {[%clk 0:02:45]}  e6 {[%clk 0:02:55]} 9. c4 {[%clk 0:02:41]}  Bd6 {[%clk 0:02:51]}
10. h3 {[%clk 0:02:22]}  O-O {[%clk 0:02:51]} 11. Be3 {[%clk 0:02:16]}  c5 {[%clk 0:02:42]} 12. Qc2 {[%clk 0:02:03]}  cxd4 {[%clk 0:02:36]}
13. Nxd4 {[%clk 0:02:01]}  a6 {[%clk 0:02:18]} 14. Rad1 {[%clk 0:02:00]}  Qc7 {[%clk 0:02:18]} 15. Nge2 {[%clk 0:01:41]}  Rac8 {[%clk 0:02:17]}
16. b3 {[%clk 0:01:29]}  Rfd8 {[%clk 0:02:14]} 17. Nf3 {[%clk 0:01:20]}  Ne5 {[%clk 0:02:09]} 18. Nxe5 {[%clk 0:01:20]}  Bxe5 {[%clk 0:02:10]}
19. Rxd8+ {[%clk 0:01:10]}  Rxd8 {[%clk 0:02:10]} 20. a4 {[%clk 0:01:02]}  Qd6 {[%clk 0:01:59]} 21. c5 {[%clk 0:00:54]}  Qd3 {[%clk 0:01:52]}
22. Qxd3 {[%clk 0:00:49]}  Rxd3 {[%clk 0:01:53]} 23. Rc1 {[%clk 0:00:42]}  Bb2 {[%clk 0:01:35]} 24. Rb1 {[%clk 0:00:37]}  Ba3 {[%clk 0:01:34]}
25. g3 {[%clk 0:00:35]}  Ne4 {[%clk 0:01:32]} 26. b4 {[%clk 0:00:31]}  Nd2 {[%clk 0:01:23]} 27. b5 {[%clk 0:00:30]}  Nxb1 {[%clk 0:01:20]}
28. c6 {[%clk 0:00:28]}  bxc6 {[%clk 0:01:15]} 29. b6 {[%clk 0:00:26]}  Nc3 {[%clk 0:00:54]} 30. Nxc3 {[%clk 0:00:15]}  Rxc3 {[%clk 0:00:51]}
31. a5 {[%clk 0:00:16]}  Rb3 {[%clk 0:00:45]} 32. Bc1 {[%clk 0:00:08]} 0-1

[Event "2026 Biel Blitz Open"]
[Site "Biel, CH"]
[Date "2026.07.19"]
[Round "8"]
[White "Delion, Helge"]
[Black "Wilhelm, Marco"]
[Result "1-0"]
[Board "51"]
[TimeControl "180+2"]
[WhiteFideId "12914568"]
[BlackFideId "1347039"]
[WhiteElo "1911"]
[BlackElo "1684"]
[WhiteClock "0:00:13"]
[BlackClock "0:00:05"]
[Variant "Standard"]
[EndDate "2026.07.19"]
[EndTime "14:27:41"]

1. e4 {[%clk 0:03:03]}  d5 {[%clk 0:03:03]} 2. exd5 {[%clk 0:03:03]}  Qxd5 {[%clk 0:03:04]} 3. Nc3 {[%clk 0:03:04]}  Qd6 {[%clk 0:03:06]}
4. d4 {[%clk 0:03:03]}  c6 {[%clk 0:03:07]} 5. Bc4 {[%clk 0:03:03]}  Nf6 {[%clk 0:03:06]} 6. Nge2 {[%clk 0:03:04]}  Bg4 {[%clk 0:03:06]}
7. f3 {[%clk 0:03:04]}  Bh5 {[%clk 0:03:06]} 8. Bf4 {[%clk 0:03:05]}  Qd8 {[%clk 0:03:07]} 9. Qd2 {[%clk 0:03:01]}  e6 {[%clk 0:03:06]}
10. O-O-O {[%clk 0:03:00]}  Be7 {[%clk 0:03:05]} 11. g4 {[%clk 0:03:00]}  Bg6 {[%clk 0:03:06]} 12. h4 {[%clk 0:03:00]}  h6 {[%clk 0:03:07]}
13. h5 {[%clk 0:02:59]}  Bh7 {[%clk 0:03:07]} 14. g5 {[%clk 0:02:57]}  hxg5 {[%clk 0:02:58]} 15. Bxg5 {[%clk 0:02:57]}  Nd5 {[%clk 0:02:56]}
16. Bxe7 {[%clk 0:02:45]}  Qxe7 {[%clk 0:02:56]} 17. h6 {[%clk 0:02:27]}  gxh6 {[%clk 0:02:50]} 18. Rxh6 {[%clk 0:02:25]}  Nf6 {[%clk 0:02:33]}
19. Rdh1 {[%clk 0:02:14]}  Nbd7 {[%clk 0:02:32]} 20. Ne4 {[%clk 0:02:07]}  O-O-O {[%clk 0:02:15]} 21. Qf4 {[%clk 0:01:59]}  Nxe4 {[%clk 0:01:11]}
22. fxe4 {[%clk 0:01:47]}  Nf8 {[%clk 0:01:01]} 23. Rf6 {[%clk 0:01:09]}  Rd7 {[%clk 0:00:39]} 24. c3 {[%clk 0:00:57]}  Ng6 {[%clk 0:00:36]}
25. Qf2 {[%clk 0:00:54]}  Nf8 {[%clk 0:00:32]} 26. Ng3 {[%clk 0:00:47]}  Rg8 {[%clk 0:00:32]} 27. Rh4 {[%clk 0:00:40]}  Bg6 {[%clk 0:00:28]}
28. Rg4 {[%clk 0:00:37]}  Nh7 {[%clk 0:00:28]} 29. Rff4 {[%clk 0:00:31]}  Nf6 {[%clk 0:00:27]} 30. Rxf6 {[%clk 0:00:31]}  Rh8 {[%clk 0:00:12]}
31. Qf4 {[%clk 0:00:27]}  Rh2 {[%clk 0:00:09]} 32. Bb3 {[%clk 0:00:20]}  c5 {[%clk 0:00:06]} 33. d5 {[%clk 0:00:17]}  e5 {[%clk 0:00:07]}
34. Qf1 {[%clk 0:00:14]}  Rh8 {[%clk 0:00:06]} 35. Rfxg6 {[%clk 0:00:12]}  fxg6 {[%clk 0:00:07]} 36. Rxg6 {[%clk 0:00:13]}  Rf8 {[%clk 0:00:07]}
37. Qh3 {[%clk 0:00:11]}  Qh7 {[%clk 0:00:08]} 38. Qxh7 {[%clk 0:00:11]}  Rxh7 {[%clk 0:00:10]} 39. Nf5 {[%clk 0:00:12]}  Rh1+ {[%clk 0:00:11]}
40. Kd2 {[%clk 0:00:12]}  Rh2+ {[%clk 0:00:14]} 41. Kd3 {[%clk 0:00:15]}  Rxb2 {[%clk 0:00:15]} 42. Nd6+ {[%clk 0:00:16]}  Kc7 {[%clk 0:00:14]}
43. Nc4 {[%clk 0:00:16]}  Rbf2 {[%clk 0:00:13]} 44. Nxe5 {[%clk 0:00:17]}  R2f6 {[%clk 0:00:12]} 45. Rxf6 {[%clk 0:00:17]}  Rxf6 {[%clk 0:00:14]}
46. Kc4 {[%clk 0:00:17]}  b6 {[%clk 0:00:15]} 47. Ba4 {[%clk 0:00:17]}  Rf3 {[%clk 0:00:15]} 48. Nd3 {[%clk 0:00:17]}  a6 {[%clk 0:00:14]}
49. Bc6 {[%clk 0:00:14]}  b5+ {[%clk 0:00:15]} 50. Kxc5 {[%clk 0:00:13]}  Rxd3 {[%clk 0:00:16]} 51. c4 {[%clk 0:00:12]}  bxc4 {[%clk 0:00:15]}
52. Kxc4 {[%clk 0:00:13]}  Rd1 {[%clk 0:00:15]} 53. e5 {[%clk 0:00:13]}  Re1 {[%clk 0:00:14]} 54. Kd4 {[%clk 0:00:14]}  Rd1+ {[%clk 0:00:14]}
55. Kc5 {[%clk 0:00:14]}  Rc1+ {[%clk 0:00:14]} 56. Kd4 {[%clk 0:00:14]}  Rd1+ {[%clk 0:00:15]} 57. Ke4 {[%clk 0:00:15]}  Re1+ {[%clk 0:00:16]}
58. Kf5 {[%clk 0:00:17]}  Rc1 {[%clk 0:00:12]} 59. Ke6 {[%clk 0:00:15]}  Kd8 {[%clk 0:00:09]} 60. a4 {[%clk 0:00:16]}  a5 {[%clk 0:00:10]}
61. Kd6 {[%clk 0:00:16]}  Rc4 {[%clk 0:00:10]} 62. e6 {[%clk 0:00:16]}  Rxa4 {[%clk 0:00:11]} 63. Bxa4 {[%clk 0:00:17]}  Kc8 {[%clk 0:00:11]}
64. e7 {[%clk 0:00:17]}  Kb7 {[%clk 0:00:12]} 65. e8=Q {[%clk 0:00:14]}  Kb6 {[%clk 0:00:13]} 66. Qc6+ {[%clk 0:00:17]}  Ka7 {[%clk 0:00:14]}
67. Bb5 {[%clk 0:00:17]}  Kb8 {[%clk 0:00:06]} 68. Qb6+ {[%clk 0:00:15]}  Kc8 {[%clk 0:00:05]} 69. Bd7# {[%clk 0:00:13]} 1-0

[Event "2026 Biel Blitz Open"]
[Site "Biel, CH"]
[Date "2026.07.19"]
[Round "8"]
[White "Vedant Nayudu"]
[Black "Heitmann, Erik"]
[Result "1-0"]
[Board "52"]
[TimeControl "180+2"]
[WhiteFideId "33369780"]
[BlackFideId "34608940"]
[WhiteElo "1732"]
[BlackElo "1885"]
[WhiteClock "0:00:19"]
[BlackClock "0:00:04"]
[Variant "Standard"]
[EndDate "2026.07.19"]
[EndTime "14:23:39"]

1. e4 {[%clk 0:03:02]}  c5 {[%clk 0:03:02]} 2. c3 {[%clk 0:03:04]}  d6 {[%clk 0:03:06]} 3. d4 {[%clk 0:03:05]}  Nf6 {[%clk 0:03:07]}
4. Bd3 {[%clk 0:02:52]}  Qc7 {[%clk 0:03:09]} 5. Nf3 {[%clk 0:02:49]}  Bg4 {[%clk 0:03:09]} 6. O-O {[%clk 0:02:38]}  e6 {[%clk 0:03:07]}
7. h3 {[%clk 0:02:37]}  Bh5 {[%clk 0:03:07]} 8. Bf4 {[%clk 0:02:32]}  Be7 {[%clk 0:03:00]} 9. Nbd2 {[%clk 0:02:24]}  Nbd7 {[%clk 0:02:58]}
10. Re1 {[%clk 0:02:18]}  Qb6 {[%clk 0:02:54]} 11. Qb3 {[%clk 0:02:13]}  Qxb3 {[%clk 0:02:39]} 12. axb3 {[%clk 0:02:14]}  cxd4 {[%clk 0:02:33]}
13. cxd4 {[%clk 0:01:56]}  a6 {[%clk 0:02:06]} 14. Rec1 {[%clk 0:01:57]}  Kd8 {[%clk 0:01:48]} 15. Be3 {[%clk 0:01:23]}  d5 {[%clk 0:01:43]}
16. e5 {[%clk 0:01:19]}  Ne8 {[%clk 0:01:42]} 17. Bg5 {[%clk 0:01:01]}  h6 {[%clk 0:01:07]} 18. Bxe7+ {[%clk 0:01:02]}  Kxe7 {[%clk 0:01:08]}
19. g4 {[%clk 0:01:03]}  Bg6 {[%clk 0:01:10]} 20. Bxg6 {[%clk 0:01:03]}  fxg6 {[%clk 0:01:11]} 21. Nh4 {[%clk 0:01:04]}  Kf7 {[%clk 0:01:05]}
22. Rc3 {[%clk 0:01:00]}  g5 {[%clk 0:00:23]} 23. Rf3+ {[%clk 0:00:59]}  Kg8 {[%clk 0:00:23]} 24. Ng6 {[%clk 0:01:02]}  Rh7 {[%clk 0:00:15]}
25. Rc1 {[%clk 0:00:41]}  h5 {[%clk 0:00:14]} 26. Ne7+ {[%clk 0:00:30]}  Kh8 {[%clk 0:00:15]} 27. Kg2 {[%clk 0:00:24]}  hxg4 {[%clk 0:00:06]}
28. hxg4 {[%clk 0:00:25]}  Rh4 {[%clk 0:00:07]} 29. Kg3 {[%clk 0:00:25]}  Rh6 {[%clk 0:00:06]} 30. Rf7 {[%clk 0:00:26]}  Nb6 {[%clk 0:00:03]}
31. Rf8+ {[%clk 0:00:18]}  Kh7 {[%clk 0:00:04]} 32. Nf3 {[%clk 0:00:19]} 1-0

[Event "2026 Biel Blitz Open"]
[Site "Biel, CH"]
[Date "2026.07.19"]
[Round "8"]
[White "Materia, Mario"]
[Black "Hirt, Markus"]
[Result "0-1"]
[Board "53"]
[TimeControl "180+2"]
[WhiteFideId "651082241"]
[BlackFideId "1302582"]
[WhiteElo "1723"]
[BlackElo "1880"]
[WhiteClock "0:00:07"]
[BlackClock "0:00:07"]
[Variant "Standard"]
[EndDate "2026.07.19"]
[EndTime "14:21:50"]

1. d4 {[%clk 0:03:02]}  e6 {[%clk 0:03:03]} 2. Nf3 {[%clk 0:03:03]}  Nf6 {[%clk 0:03:03]} 3. c4 {[%clk 0:03:03]}  d5 {[%clk 0:03:01]}
4. Bg5 {[%clk 0:03:03]}  Be7 {[%clk 0:02:57]} 5. e3 {[%clk 0:03:03]}  O-O {[%clk 0:02:56]} 6. Nc3 {[%clk 0:03:05]}  c6 {[%clk 0:02:51]}
7. Qc2 {[%clk 0:03:04]}  Nbd7 {[%clk 0:02:49]} 8. Rd1 {[%clk 0:03:05]}  h6 {[%clk 0:02:45]} 9. Bf4 {[%clk 0:03:06]}  dxc4 {[%clk 0:02:29]}
10. Bxc4 {[%clk 0:03:06]}  b5 {[%clk 0:02:30]} 11. Be2 {[%clk 0:03:00]}  Bb7 {[%clk 0:02:29]} 12. O-O {[%clk 0:03:00]}  a6 {[%clk 0:02:28]}
13. h3 {[%clk 0:02:55]}  Qb6 {[%clk 0:02:23]} 14. Rfe1 {[%clk 0:02:51]}  c5 {[%clk 0:02:16]} 15. dxc5 {[%clk 0:02:50]}  Nxc5 {[%clk 0:02:16]}
16. Nd4 {[%clk 0:02:28]}  Rac8 {[%clk 0:02:12]} 17. Qb1 {[%clk 0:02:19]}  Nce4 {[%clk 0:02:00]} 18. Nxe4 {[%clk 0:02:13]}  Bxe4 {[%clk 0:01:57]}
19. Bd3 {[%clk 0:02:14]}  Bxd3 {[%clk 0:01:51]} 20. Qxd3 {[%clk 0:02:15]}  Rfd8 {[%clk 0:01:46]} 21. Qb3 {[%clk 0:02:15]}  Rc4 {[%clk 0:01:37]}
22. Rc1 {[%clk 0:02:13]}  Rdc8 {[%clk 0:01:31]} 23. Rxc4 {[%clk 0:02:13]}  Rxc4 {[%clk 0:01:31]} 24. Rd1 {[%clk 0:02:04]}  Qc5 {[%clk 0:01:27]}
25. Nf3 {[%clk 0:01:59]}  Rc1 {[%clk 0:01:24]} 26. Rxc1 {[%clk 0:01:59]}  Qxc1+ {[%clk 0:01:25]} 27. Kh2 {[%clk 0:02:01]}  Qc5 {[%clk 0:01:19]}
28. Qd3 {[%clk 0:01:42]}  Nd5 {[%clk 0:01:17]} 29. Be5 {[%clk 0:01:36]}  Bd6 {[%clk 0:01:11]} 30. Qd4 {[%clk 0:01:31]}  Qxd4 {[%clk 0:01:09]}
31. exd4 {[%clk 0:01:31]}  Bxe5+ {[%clk 0:01:05]} 32. dxe5 {[%clk 0:01:31]}  Nb4 {[%clk 0:01:00]} 33. a3 {[%clk 0:01:31]}  Nd3 {[%clk 0:01:00]}
34. b4 {[%clk 0:01:27]}  Nxf2 {[%clk 0:00:57]} 35. Nd4 {[%clk 0:01:23]}  Nd3 {[%clk 0:00:52]} 36. Nc6 {[%clk 0:01:24]}  Kf8 {[%clk 0:00:50]}
37. Nb8 {[%clk 0:01:25]}  Nxe5 {[%clk 0:00:50]} 38. Nxa6 {[%clk 0:01:26]}  Nc4 {[%clk 0:00:48]} 39. Kg3 {[%clk 0:01:04]}  Nxa3 {[%clk 0:00:48]}
40. Kf3 {[%clk 0:01:05]}  Ke7 {[%clk 0:00:41]} 41. Nc5 {[%clk 0:01:02]}  Kd6 {[%clk 0:00:36]} 42. Ke4 {[%clk 0:00:54]}  Nc2 {[%clk 0:00:29]}
43. Nb7+ {[%clk 0:00:53]}  Kc7 {[%clk 0:00:26]} 44. Nc5 {[%clk 0:00:51]}  Nxb4 {[%clk 0:00:25]} 45. Kd4 {[%clk 0:00:51]}  Nd5 {[%clk 0:00:26]}
46. g4 {[%clk 0:00:51]}  b4 {[%clk 0:00:26]} 47. Ne4 {[%clk 0:00:50]}  Kc6 {[%clk 0:00:25]} 48. Kc4 {[%clk 0:00:52]}  f5 {[%clk 0:00:24]}
49. gxf5 {[%clk 0:00:53]}  exf5 {[%clk 0:00:25]} 50. Ng3 {[%clk 0:00:51]}  g6 {[%clk 0:00:24]} 51. h4 {[%clk 0:00:52]}  f4 {[%clk 0:00:22]}
52. Ne4 {[%clk 0:00:49]}  f3 {[%clk 0:00:22]} 53. Kd4 {[%clk 0:00:44]}  b3 {[%clk 0:00:19]} 54. Kd3 {[%clk 0:00:41]}  Nf4+ {[%clk 0:00:16]}
55. Kc3 {[%clk 0:00:42]}  Nh3 {[%clk 0:00:14]} 56. Kxb3 {[%clk 0:00:43]}  f2 {[%clk 0:00:15]} 57. Nd2 {[%clk 0:00:41]}  Kd5 {[%clk 0:00:14]}
58. Kc3 {[%clk 0:00:42]}  Ke5 {[%clk 0:00:15]} 59. Kd3 {[%clk 0:00:41]}  Kf4 {[%clk 0:00:16]} 60. Ke2 {[%clk 0:00:41]}  Kg3 {[%clk 0:00:16]}
61. Ne4+ {[%clk 0:00:31]}  Kg2 {[%clk 0:00:17]} 62. Nd2 {[%clk 0:00:30]}  Nf4+ {[%clk 0:00:15]} 63. Ke3 {[%clk 0:00:31]}  Nh3 {[%clk 0:00:15]}
64. Ke2 {[%clk 0:00:29]}  Kg3 {[%clk 0:00:14]} 65. Ne4+ {[%clk 0:00:30]}  Kg2 {[%clk 0:00:14]} 66. Nd2 {[%clk 0:00:30]}  g5 {[%clk 0:00:15]}
67. hxg5 {[%clk 0:00:31]}  hxg5 {[%clk 0:00:16]} 68. Ke3 {[%clk 0:00:10]}  f1=Q {[%clk 0:00:15]} 69. Nxf1 {[%clk 0:00:10]}  Kxf1 {[%clk 0:00:15]}
70. Kf3 {[%clk 0:00:12]}  Nf4 {[%clk 0:00:10]} 71. Kg4 {[%clk 0:00:12]}  Ne6 {[%clk 0:00:11]} 72. Kf5 {[%clk 0:00:09]}  Kf2 {[%clk 0:00:11]}
73. Kxe6 {[%clk 0:00:09]}  g4 {[%clk 0:00:13]} 74. Kf5 {[%clk 0:00:10]}  g3 {[%clk 0:00:07]} 75. Kf6 {[%clk 0:00:07]} 0-1

[Event "2026 Biel Blitz Open"]
[Site "Biel, CH"]
[Date "2026.07.19"]
[Round "9"]
[White "Bu, Xiangzhi"]
[Black "Shukhman, Anna"]
[Result "1-0"]
[Board "1"]
[TimeControl "180+2"]
[WhiteFideId "8601445"]
[BlackFideId "54180058"]
[WhiteElo "2719"]
[BlackElo "2392"]
[WhiteTitle "GM"]
[BlackTitle "WGM"]
[WhiteClock "0:00:09"]
[BlackClock "0:00:05"]
[Variant "Standard"]
[EndDate "2026.07.19"]
[EndTime "14:38:32"]

1. Nf3 {[%clk 0:03:03]}  d5 {[%clk 0:03:03]} 2. d4 {[%clk 0:03:04]}  Nf6 {[%clk 0:03:04]} 3. c4 {[%clk 0:03:06]}  e6 {[%clk 0:03:05]}
4. Nc3 {[%clk 0:03:06]}  Nbd7 {[%clk 0:03:06]} 5. Bg5 {[%clk 0:03:07]}  Bb4 {[%clk 0:03:07]} 6. cxd5 {[%clk 0:03:07]}  exd5 {[%clk 0:03:07]}
7. e3 {[%clk 0:03:08]}  h6 {[%clk 0:03:04]} 8. Bxf6 {[%clk 0:03:09]}  Qxf6 {[%clk 0:03:05]} 9. Qb3 {[%clk 0:03:09]}  Bxc3+ {[%clk 0:03:00]}
10. Qxc3 {[%clk 0:03:10]}  c6 {[%clk 0:02:59]} 11. Bd3 {[%clk 0:03:11]}  O-O {[%clk 0:02:57]} 12. O-O {[%clk 0:03:11]}  Qd6 {[%clk 0:02:44]}
13. b4 {[%clk 0:03:11]}  Nf6 {[%clk 0:02:28]} 14. Rfc1 {[%clk 0:03:10]}  Bg4 {[%clk 0:02:05]} 15. Ne5 {[%clk 0:03:08]}  Be6 {[%clk 0:02:05]}
16. Qc5 {[%clk 0:02:54]}  Qxc5 {[%clk 0:01:45]} 17. dxc5 {[%clk 0:02:28]}  d4 {[%clk 0:01:41]} 18. e4 {[%clk 0:02:18]}  Nd7 {[%clk 0:01:26]}
19. Nf3 {[%clk 0:01:51]}  Rfd8 {[%clk 0:01:17]} 20. h3 {[%clk 0:01:39]}  f6 {[%clk 0:00:57]} 21. Nd2 {[%clk 0:01:08]}  Ne5 {[%clk 0:00:54]}
22. Bf1 {[%clk 0:01:09]}  g5 {[%clk 0:00:55]} 23. g3 {[%clk 0:01:04]}  a5 {[%clk 0:00:47]} 24. f4 {[%clk 0:01:03]}  Nd7 {[%clk 0:00:33]}
25. a3 {[%clk 0:00:56]}  gxf4 {[%clk 0:00:24]} 26. gxf4 {[%clk 0:00:58]}  Kf8 {[%clk 0:00:25]} 27. Nf3 {[%clk 0:00:56]}  Bf7 {[%clk 0:00:24]}
28. Kf2 {[%clk 0:00:44]}  b6 {[%clk 0:00:14]} 29. cxb6 {[%clk 0:00:22]}  axb4 {[%clk 0:00:16]} 30. axb4 {[%clk 0:00:22]}  Rxa1 {[%clk 0:00:16]}
31. Rxa1 {[%clk 0:00:23]}  Nxb6 {[%clk 0:00:17]} 32. Ra6 {[%clk 0:00:25]}  Nd7 {[%clk 0:00:03]} 33. Rxc6 {[%clk 0:00:17]}  Rb8 {[%clk 0:00:04]}
34. b5 {[%clk 0:00:18]}  Be8 {[%clk 0:00:05]} 35. Nxd4 {[%clk 0:00:18]}  Ra8 {[%clk 0:00:06]} 36. Bc4 {[%clk 0:00:15]}  Ra4 {[%clk 0:00:06]}
37. Rc7 {[%clk 0:00:10]}  Ke7 {[%clk 0:00:05]} 38. b6 {[%clk 0:00:08]}  Kd8 {[%clk 0:00:05]} 39. Nc6# {[%clk 0:00:09]} 1-0

[Event "2026 Biel Blitz Open"]
[Site "Biel, CH"]
[Date "2026.07.19"]
[Round "9"]
[White "Arjun Kalyan"]
[Black "Aronyak Ghosh"]
[Result "1/2-1/2"]
[Board "2"]
[TimeControl "180+2"]
[WhiteFideId "35018701"]
[BlackFideId "25072846"]
[WhiteElo "2451"]
[BlackElo "2488"]
[WhiteTitle "GM"]
[BlackTitle "IM"]
[WhiteClock "0:00:42"]
[BlackClock "0:00:23"]
[Variant "Standard"]
[EndDate "2026.07.19"]
[EndTime "14:41:15"]

1. e4 {[%clk 0:03:03]}  c6 {[%clk 0:03:03]} 2. d4 {[%clk 0:03:04]}  d5 {[%clk 0:03:04]} 3. Nd2 {[%clk 0:03:05]}  dxe4 {[%clk 0:03:03]}
4. Nxe4 {[%clk 0:03:05]}  Bf5 {[%clk 0:03:03]} 5. Ng3 {[%clk 0:03:06]}  Bg6 {[%clk 0:03:04]} 6. h4 {[%clk 0:03:07]}  h6 {[%clk 0:03:03]}
7. Nf3 {[%clk 0:03:07]}  e6 {[%clk 0:03:04]} 8. Ne5 {[%clk 0:02:55]}  Bh7 {[%clk 0:03:04]} 9. Bf4 {[%clk 0:02:56]}  Nf6 {[%clk 0:02:41]}
10. Bc4 {[%clk 0:02:37]}  Nd5 {[%clk 0:02:14]} 11. Bd2 {[%clk 0:02:17]}  Nd7 {[%clk 0:02:10]} 12. Nxd7 {[%clk 0:01:59]}  Qxd7 {[%clk 0:02:10]}
13. Bb3 {[%clk 0:02:00]}  a5 {[%clk 0:01:45]} 14. a4 {[%clk 0:01:58]}  Nf6 {[%clk 0:01:35]} 15. Bf4 {[%clk 0:01:35]}  Bd6 {[%clk 0:01:19]}
16. Be5 {[%clk 0:01:33]}  Bxe5 {[%clk 0:01:13]} 17. dxe5 {[%clk 0:01:34]}  Qxd1+ {[%clk 0:01:14]} 18. Rxd1 {[%clk 0:01:35]}  Nd7 {[%clk 0:01:01]}
19. f4 {[%clk 0:01:32]}  Ke7 {[%clk 0:01:01]} 20. Ke2 {[%clk 0:01:25]}  Nc5 {[%clk 0:00:59]} 21. Rd2 {[%clk 0:01:16]}  Rhd8 {[%clk 0:00:59]}
22. Rhd1 {[%clk 0:01:15]}  Rxd2+ {[%clk 0:00:57]} 23. Rxd2 {[%clk 0:01:16]}  b5 {[%clk 0:00:53]} 24. axb5 {[%clk 0:01:17]}  cxb5 {[%clk 0:00:54]}
25. Ba2 {[%clk 0:01:17]}  Bg6 {[%clk 0:00:46]} 26. Ke3 {[%clk 0:01:12]}  Na4 {[%clk 0:00:39]} 27. c3 {[%clk 0:01:10]}  Rd8 {[%clk 0:00:40]}
28. Ne2 {[%clk 0:00:58]}  Rxd2 {[%clk 0:00:35]} 29. Kxd2 {[%clk 0:00:59]}  Nxb2 {[%clk 0:00:29]} 30. Nd4 {[%clk 0:01:00]}  b4 {[%clk 0:00:21]}
31. cxb4 {[%clk 0:00:39]}  axb4 {[%clk 0:00:22]} 32. Nc6+ {[%clk 0:00:41]}  Kd7 {[%clk 0:00:22]} 33. Nxb4 {[%clk 0:00:42]}  Na4 {[%clk 0:00:23]} 1/2-1/2

[Event "2026 Biel Blitz Open"]
[Site "Biel, CH"]
[Date "2026.07.19"]
[Round "9"]
[White "Ghosh, Diptayan"]
[Black "Elmi, Saad Abobaker"]
[Result "1-0"]
[Board "3"]
[TimeControl "180+2"]
[WhiteFideId "5045207"]
[BlackFideId "1553259"]
[WhiteElo "2530"]
[BlackElo "2409"]
[WhiteTitle "GM"]
[BlackTitle "IM"]
[WhiteClock "0:00:35"]
[BlackClock "0:00:19"]
[Variant "Standard"]
[EndDate "2026.07.19"]
[EndTime "14:37:35"]

1. c4 {[%clk 0:03:02]}  e6 {[%clk 0:03:02]} 2. Nc3 {[%clk 0:03:03]}  Nf6 {[%clk 0:03:02]} 3. e4 {[%clk 0:03:04]}  c5 {[%clk 0:03:03]}
4. e5 {[%clk 0:03:04]}  Ng8 {[%clk 0:03:04]} 5. d4 {[%clk 0:03:06]}  cxd4 {[%clk 0:03:04]} 6. Qxd4 {[%clk 0:03:06]}  Nc6 {[%clk 0:03:05]}
7. Qf4 {[%clk 0:03:07]}  d6 {[%clk 0:03:01]} 8. Nf3 {[%clk 0:03:07]}  Nge7 {[%clk 0:03:02]} 9. exd6 {[%clk 0:03:06]}  Ng6 {[%clk 0:03:02]}
10. Qe4 {[%clk 0:03:07]}  Bxd6 {[%clk 0:03:02]} 11. Bd2 {[%clk 0:03:08]}  O-O {[%clk 0:02:58]} 12. O-O-O {[%clk 0:03:09]}  a6 {[%clk 0:02:56]}
13. h4 {[%clk 0:03:08]}  f5 {[%clk 0:02:43]} 14. Qe1 {[%clk 0:03:08]}  Qc7 {[%clk 0:02:37]} 15. Kb1 {[%clk 0:02:56]}  Bd7 {[%clk 0:02:31]}
16. h5 {[%clk 0:02:50]}  Nge5 {[%clk 0:02:32]} 17. Bf4 {[%clk 0:02:16]}  Nxf3 {[%clk 0:02:05]} 18. Bxd6 {[%clk 0:02:16]}  Qxd6 {[%clk 0:02:06]}
19. Rxd6 {[%clk 0:02:13]}  Nxe1 {[%clk 0:02:06]} 20. Rxd7 {[%clk 0:02:14]}  Rad8 {[%clk 0:02:03]} 21. Rxb7 {[%clk 0:01:50]}  Rd2 {[%clk 0:01:52]}
22. Be2 {[%clk 0:01:51]}  Nxg2 {[%clk 0:01:47]} 23. Rg1 {[%clk 0:01:38]}  Na5 {[%clk 0:01:39]} 24. Rc7 {[%clk 0:01:36]}  Rb8 {[%clk 0:01:34]}
25. Rxg2 {[%clk 0:00:58]}  Rbxb2+ {[%clk 0:01:09]} 26. Ka1 {[%clk 0:00:59]}  g6 {[%clk 0:00:16]} 27. hxg6 {[%clk 0:00:59]}  h6 {[%clk 0:00:18]}
28. g7 {[%clk 0:00:53]}  Rb8 {[%clk 0:00:19]} 29. Bh5 {[%clk 0:00:35]} 1-0